[Event "*** Titled Tuesday Blitz"]
[Site "Chess.com"]
[Date "2019.06.04"]
[Round "1"]
[White "Thjop"]
[Black "Khanya_Mazibuko"]
[Result "1-0"]
[WhiteElo "2581"]
[BlackElo "2213"]
[TimeControl "180+2"]
[EndTime "13:08:52 PDT"]
[Termination "Thjop won by checkmate"]

1. e4 {[%clk 0:02:57.8]} 1... e5 {[%clk 0:03:00.1]} 2. Nf3 {[%clk 0:02:58.2]}
2... Nc6 {[%clk 0:03:01.4]} 3. Bb5 {[%clk 0:02:58.5]} 3... a6 {[%clk 0:03:02.6]}
4. Ba4 {[%clk 0:02:49.4]} 4... Nf6 {[%clk 0:03:02.5]} 5. O-O {[%clk 0:02:49.8]}
5... Be7 {[%clk 0:03:03.7]} 6. d3 {[%clk 0:02:50]} 6... b5 {[%clk 0:03:04.8]} 7.
Bb3 {[%clk 0:02:50.3]} 7... d6 {[%clk 0:03:06.7]} 8. a3 {[%clk 0:02:50.3]} 8...
O-O {[%clk 0:03:06.1]} 9. Nc3 {[%clk 0:02:50.8]} 9... Bg4 {[%clk 0:03:04]} 10.
Be3 {[%clk 0:02:50.4]} 10... Nd4 {[%clk 0:03:02.7]} 11. Bxd4 {[%clk 0:02:51.2]}
11... exd4 {[%clk 0:03:03.9]} 12. Nd5 {[%clk 0:02:52.1]} 12... c5 {[%clk
0:03:04.3]} 13. h3 {[%clk 0:02:48.9]} 13... Be6 {[%clk 0:03:02.5]} 14. Nxf6+
{[%clk 0:02:41.9]} 14... Bxf6 {[%clk 0:03:01.8]} 15. Bxe6 {[%clk 0:02:43.8]}
15... fxe6 {[%clk 0:03:02.2]} 16. a4 {[%clk 0:02:43.4]} 16... e5 {[%clk
0:02:57.7]} 17. b3 {[%clk 0:02:43.1]} 17... d5 {[%clk 0:02:58.1]} 18. exd5
{[%clk 0:02:42.9]} 18... Qxd5 {[%clk 0:02:59.5]} 19. Nd2 {[%clk 0:02:41.2]}
19... Bg5 {[%clk 0:02:46.2]} 20. Ne4 {[%clk 0:02:39.7]} 20... Bh6 {[%clk
0:02:43.8]} 21. Re1 {[%clk 0:02:25.1]} 21... c4 {[%clk 0:02:44.4]} 22. axb5
{[%clk 0:02:19.5]} 22... axb5 {[%clk 0:02:44.9]} 23. Rxa8 {[%clk 0:02:20.3]}
23... Rxa8 {[%clk 0:02:44.6]} 24. bxc4 {[%clk 0:02:21.2]} 24... bxc4 {[%clk
0:02:44.9]} 25. Qf3 {[%clk 0:02:21.9]} 25... Rd8 {[%clk 0:02:41]} 26. Ra1 {[%clk
0:02:18.7]} 26... cxd3 {[%clk 0:02:35.6]} 27. cxd3 {[%clk 0:02:20.6]} 27... Qf7
{[%clk 0:02:36.5]} 28. Qg4 {[%clk 0:02:09.6]} 28... Qb3 {[%clk 0:02:24.7]} 29.
Qe2 {[%clk 0:01:26.1]} 29... Rb8 {[%clk 0:02:05.8]} 30. Ra5 {[%clk 0:01:09.3]}
30... Re8 {[%clk 0:01:21.7]} 31. g3 {[%clk 0:01:04.1]} 31... Qb4 {[%clk
0:01:03.7]} 32. Ra7 {[%clk 0:01:00]} 32... Rf8 {[%clk 0:01:01.5]} 33. Kg2 {[%clk
0:00:58.2]} 33... g6 {[%clk 0:00:48.2]} 34. Qa2+ {[%clk 0:00:56.7]} 34... Kh8
{[%clk 0:00:47.8]} 35. Qd5 {[%clk 0:00:55.9]} 35... Bg7 {[%clk 0:00:46.5]} 36.
Qd7 {[%clk 0:00:52.2]} 36... Rg8 {[%clk 0:00:30.8]} 37. Ng5 {[%clk 0:00:49.1]}
37... h6 {[%clk 0:00:26.6]} 38. Nf7+ {[%clk 0:00:45.6]} 38... Kh7 {[%clk
0:00:26.9]} 39. Nxe5 {[%clk 0:00:45.4]} 39... Qd2 {[%clk 0:00:15.7]} 40. Qf7
{[%clk 0:00:31.6]} 40... g5 {[%clk 0:00:05.2]} 41. Qf5+ {[%clk 0:00:29.5]} 41...
Kh8 {[%clk 0:00:06]} 42. Nf7# {[%clk 0:00:29.4]} 1-0

[Event "*** Titled Tuesday Blitz"]
[Site "Chess.com"]
[Date "2019.06.04"]
[Round "1"]
[White "Borsuk_Konstantin"]
[Black "Denis_Palkovich"]
[Result "1/2-1/2"]
[WhiteElo "2590"]
[BlackElo "2238"]
[TimeControl "180+2"]
[EndTime "13:08:56 PDT"]
[Termination "Game drawn - insufficient material"]

1. d4 {[%clk 0:03:01.9]} 1... d5 {[%clk 0:02:58.7]} 2. c4 {[%clk 0:03:03]} 2...
Bf5 {[%clk 0:02:56.8]} 3. Nc3 {[%clk 0:03:03.5]} 3... e6 {[%clk 0:02:57.4]} 4.
Bf4 {[%clk 0:03:00.3]} 4... Bd6 {[%clk 0:02:57]} 5. Bxd6 {[%clk 0:02:59.2]} 5...
Qxd6 {[%clk 0:02:57.3]} 6. e3 {[%clk 0:02:56.4]} 6... Nf6 {[%clk 0:02:54.4]} 7.
Nf3 {[%clk 0:02:54.1]} 7... O-O {[%clk 0:02:51.9]} 8. c5 {[%clk 0:02:54.9]} 8...
Qe7 {[%clk 0:02:51.5]} 9. Bd3 {[%clk 0:02:55.4]} 9... c6 {[%clk 0:02:48.4]} 10.
O-O {[%clk 0:02:51.3]} 10... Nbd7 {[%clk 0:02:47.3]} 11. b4 {[%clk 0:02:52]}
11... a6 {[%clk 0:02:42.1]} 12. Ne5 {[%clk 0:02:49.8]} 12... Bxd3 {[%clk
0:02:25.2]} 13. Nxd3 {[%clk 0:02:39.9]} 13... e5 {[%clk 0:02:21.5]} 14. a4
{[%clk 0:02:35.7]} 14... exd4 {[%clk 0:02:14.8]} 15. exd4 {[%clk 0:02:36.4]}
15... Ne4 {[%clk 0:02:16.3]} 16. Re1 {[%clk 0:02:23.7]} 16... Ndf6 {[%clk
0:02:01]} 17. f3 {[%clk 0:02:21.4]} 17... Nxc3 {[%clk 0:02:01.9]} 18. Rxe7
{[%clk 0:02:21.2]} 18... Nxd1 {[%clk 0:02:03.4]} 19. Rxd1 {[%clk 0:02:21.4]}
19... Rab8 {[%clk 0:02:01]} 20. b5 {[%clk 0:02:09.6]} 20... axb5 {[%clk
0:02:00.4]} 21. axb5 {[%clk 0:02:10.8]} 21... Rfe8 {[%clk 0:02:01.4]} 22. Rxe8+
{[%clk 0:02:08.2]} 22... Nxe8 {[%clk 0:01:50.3]} 23. b6 {[%clk 0:02:06.6]} 23...
Ra8 {[%clk 0:01:48.3]} 24. Re1 {[%clk 0:02:05.7]} 24... Kf8 {[%clk 0:01:48.4]}
25. Ne5 {[%clk 0:02:06.1]} 25... Nf6 {[%clk 0:01:42.3]} 26. g4 {[%clk
0:02:03.1]} 26... h6 {[%clk 0:01:33.5]} 27. Kf2 {[%clk 0:01:58.3]} 27... Ra4
{[%clk 0:01:21.5]} 28. Rd1 {[%clk 0:01:57.4]} 28... Ke7 {[%clk 0:01:18.7]} 29.
h4 {[%clk 0:01:57.9]} 29... Nd7 {[%clk 0:01:05.7]} 30. Nxd7 {[%clk 0:01:56.9]}
30... Kxd7 {[%clk 0:01:03.1]} 31. h5 {[%clk 0:01:54.7]} 31... Ra2+ {[%clk
0:00:41.4]} 32. Ke3 {[%clk 0:01:54.9]} 32... Ke6 {[%clk 0:00:40.3]} 33. Kf4
{[%clk 0:01:56.1]} 33... Kf6 {[%clk 0:00:38.7]} 34. Rd3 {[%clk 0:01:56.7]} 34...
Ra4 {[%clk 0:00:39]} 35. Kg3 {[%clk 0:01:57.6]} 35... g6 {[%clk 0:00:21.4]} 36.
hxg6 {[%clk 0:01:56.9]} 36... fxg6 {[%clk 0:00:22.4]} 37. f4 {[%clk 0:01:56.9]}
37... Rb4 {[%clk 0:00:22.4]} 38. Kf3 {[%clk 0:01:57.1]} 38... Ra4 {[%clk
0:00:23.5]} 39. Ke3 {[%clk 0:01:57.8]} 39... Rb4 {[%clk 0:00:24.6]} 40. Kd2
{[%clk 0:01:57.7]} 40... Ra4 {[%clk 0:00:24.2]} 41. Kc2 {[%clk 0:01:57.7]} 41...
h5 {[%clk 0:00:24.4]} 42. gxh5 {[%clk 0:01:56.8]} 42... gxh5 {[%clk 0:00:26.3]}
43. Kb3 {[%clk 0:01:55.3]} 43... Rc4 {[%clk 0:00:24.5]} 44. Rh3 {[%clk 0:01:52]}
44... Rxd4 {[%clk 0:00:25.2]} 45. Rxh5 {[%clk 0:01:53.1]} 45... Rc4 {[%clk
0:00:26.8]} 46. Rh7 {[%clk 0:01:51.6]} 46... Rxc5 {[%clk 0:00:27.3]} 47. Rxb7
{[%clk 0:01:52.8]} 47... Rb5+ {[%clk 0:00:26.6]} 48. Kc3 {[%clk 0:01:54]} 48...
Kf5 {[%clk 0:00:27.3]} 49. Rb8 {[%clk 0:01:52.8]} 49... Ke6 {[%clk 0:00:08.1]}
50. b7 {[%clk 0:01:53.2]} 50... Kd7 {[%clk 0:00:09.2]} 51. f5 {[%clk 0:01:51.9]}
51... Kc7 {[%clk 0:00:10.4]} 52. Rf8 {[%clk 0:01:49]} 52... Kxb7 {[%clk
0:00:09.3]} 53. Kd4 {[%clk 0:01:47.6]} 53... Rb4+ {[%clk 0:00:09.6]} 54. Ke5
{[%clk 0:01:47.7]} 54... Re4+ {[%clk 0:00:11.1]} 55. Kd6 {[%clk 0:01:48.5]}
55... d4 {[%clk 0:00:10.9]} 56. Kc5 {[%clk 0:01:48.8]} 56... d3 {[%clk
0:00:10.5]} 57. Rf7+ {[%clk 0:01:50]} 57... Ka6 {[%clk 0:00:08.7]} 58. f6 {[%clk
0:01:47.8]} 58... d2 {[%clk 0:00:09.3]} 59. Rd7 {[%clk 0:01:49]} 59... Rf4
{[%clk 0:00:10.1]} 60. Rxd2 {[%clk 0:01:48.4]} 60... Rf5+ {[%clk 0:00:07.1]} 61.
Kxc6 {[%clk 0:01:44.4]} 61... Rxf6+ {[%clk 0:00:08.1]} 62. Kc5 {[%clk
0:01:45.5]} 62... Rf5+ {[%clk 0:00:09.2]} 63. Rd5 {[%clk 0:01:45.9]} 63... Rxd5+
{[%clk 0:00:09.9]} 64. Kxd5 {[%clk 0:01:47.8]} 1/2-1/2

[Event "*** Titled Tuesday Blitz"]
[Site "Chess.com"]
[Date "2019.06.04"]
[Round "1"]
[White "TheRigos"]
[Black "vugarrasulov"]
[Result "0-1"]
[WhiteElo "2413"]
[BlackElo "2776"]
[TimeControl "180+2"]
[EndTime "13:09:04 PDT"]
[Termination "vugarrasulov won on time"]

1. e4 {[%clk 0:02:30.5]} 1... e6 {[%clk 0:03:00.2]} 2. d4 {[%clk 0:02:31.3]}
2... d5 {[%clk 0:03:01.5]} 3. Nd2 {[%clk 0:02:32.4]} 3... c5 {[%clk 0:03:01.9]}
4. Ngf3 {[%clk 0:02:30.2]} 4... cxd4 {[%clk 0:02:59.3]} 5. Nxd4 {[%clk
0:02:27.6]} 5... Nf6 {[%clk 0:02:58.7]} 6. e5 {[%clk 0:02:21.9]} 6... Nfd7
{[%clk 0:02:58.8]} 7. N2f3 {[%clk 0:02:23.2]} 7... Nc6 {[%clk 0:02:54.4]} 8. Bb5
{[%clk 0:02:19.9]} 8... Qc7 {[%clk 0:02:47.8]} 9. O-O {[%clk 0:02:07.6]} 9... a6
{[%clk 0:02:33.6]} 10. Bxc6 {[%clk 0:02:00.8]} 10... bxc6 {[%clk 0:02:34.6]} 11.
Bf4 {[%clk 0:01:37.4]} 11... c5 {[%clk 0:02:35.2]} 12. Ne2 {[%clk 0:01:37.5]}
12... Be7 {[%clk 0:02:32.1]} 13. Re1 {[%clk 0:01:20.2]} 13... O-O {[%clk
0:02:27.2]} 14. c3 {[%clk 0:01:13.2]} 14... Bb7 {[%clk 0:02:28]} 15. Qd2 {[%clk
0:01:09.3]} 15... Rad8 {[%clk 0:02:25]} 16. h4 {[%clk 0:01:07.4]} 16... d4
{[%clk 0:02:15.4]} 17. cxd4 {[%clk 0:01:01.5]} 17... Bxf3 {[%clk 0:02:16.4]} 18.
gxf3 {[%clk 0:01:01.3]} 18... Qb7 {[%clk 0:02:17.6]} 19. d5 {[%clk 0:00:44.8]}
19... exd5 {[%clk 0:02:07.1]} 20. Nc3 {[%clk 0:00:41.9]} 20... Nb6 {[%clk
0:02:00.9]} 21. b3 {[%clk 0:00:39.2]} 21... Bxh4 {[%clk 0:02:00.2]} 22. Kg2
{[%clk 0:00:39.5]} 22... Qc6 {[%clk 0:01:43.9]} 23. Rh1 {[%clk 0:00:32.7]} 23...
Qg6+ {[%clk 0:01:44.7]} 24. Kf1 {[%clk 0:00:24.9]} 24... Be7 {[%clk 0:01:45.7]}
25. Rg1 {[%clk 0:00:25.2]} 25... Qh5 {[%clk 0:01:46.3]} 26. Ke2 {[%clk
0:00:24.2]} 26... d4 {[%clk 0:01:46.2]} 27. Ne4 {[%clk 0:00:24.2]} 27... d3+
{[%clk 0:01:47.6]} 28. Kf1 {[%clk 0:00:13.4]} 28... Qh3+ {[%clk 0:01:46]} 29.
Ke1 {[%clk 0:00:13.1]} 29... Qxf3 {[%clk 0:01:47]} 30. Qe3 {[%clk 0:00:06.8]}
30... Qxe3+ {[%clk 0:01:43]} 31. Bxe3 {[%clk 0:00:05.6]} 31... Nd5 {[%clk
0:01:44.6]} 32. Kd2 {[%clk 0:00:04.6]} 32... Nxe3 {[%clk 0:01:44.8]} 33. fxe3
{[%clk 0:00:05.4]} 33... Rd5 {[%clk 0:01:45.3]} 34. Rac1 {[%clk 0:00:03.8]}
34... Rxe5 {[%clk 0:01:46.1]} 35. Rc4 {[%clk 0:00:05]} 35... g6 {[%clk
0:01:46.2]} 36. Kxd3 {[%clk 0:00:06.2]} 36... Rd8+ {[%clk 0:01:46.1]} 37. Ke2
{[%clk 0:00:06.9]} 37... f5 {[%clk 0:01:47.7]} 38. Nc3 {[%clk 0:00:06.7]} 38...
Kg7 {[%clk 0:01:46.8]} 39. Rd1 {[%clk 0:00:05.7]} 39... Rxd1 {[%clk 0:01:47]}
40. Nxd1 {[%clk 0:00:07.6]} 40... h5 {[%clk 0:01:48.3]} 41. Nf2 {[%clk
0:00:08.5]} 41... h4 {[%clk 0:01:49.2]} 42. Kf3 {[%clk 0:00:09.5]} 42... g5
{[%clk 0:01:49.6]} 43. Nd3 {[%clk 0:00:08.9]} 43... Rd5 {[%clk 0:01:50.9]} 44.
Ke2 {[%clk 0:00:07.9]} 44... h3 {[%clk 0:01:51.2]} 45. Nf2 {[%clk 0:00:07.4]}
45... g4 {[%clk 0:01:52.4]} 46. e4 {[%clk 0:00:08.6]} 46... Re5 {[%clk
0:01:50.2]} 47. Kf1 {[%clk 0:00:08.1]} 47... Bh4 {[%clk 0:01:48.6]} 48. exf5
{[%clk 0:00:08.7]} 48... Bxf2 {[%clk 0:01:45.4]} 49. Rxg4+ {[%clk 0:00:08.9]}
49... Kf6 {[%clk 0:01:46.8]} 50. Kxf2 {[%clk 0:00:10.2]} 50... Rxf5+ {[%clk
0:01:46.6]} 51. Kg3 {[%clk 0:00:10.2]} 51... Rh5 {[%clk 0:01:46.8]} 52. Kh2
{[%clk 0:00:10.1]} 52... Ke5 {[%clk 0:01:48.4]} 53. Ra4 {[%clk 0:00:10.8]} 53...
Rh6 {[%clk 0:01:49.6]} 54. Rc4 {[%clk 0:00:07.4]} 54... Kd5 {[%clk 0:01:50.7]}
55. Rc3 {[%clk 0:00:06.6]} 55... Rh4 {[%clk 0:01:45.7]} 56. Rc2 {[%clk
0:00:06.9]} 56... a5 {[%clk 0:01:46.1]} 57. Rc3 {[%clk 0:00:06.9]} 57... a4
{[%clk 0:01:45]} 58. bxa4 {[%clk 0:00:07]} 58... Rxa4 {[%clk 0:01:46.9]} 59. a3
{[%clk 0:00:07]} 59... Rh4 {[%clk 0:01:47.2]} 60. Rc2 {[%clk 0:00:02.1]} 60...
c4 {[%clk 0:01:45.3]} 61. a4 {[%clk 0:00:03.3]} 61... Kc5 {[%clk 0:01:45.9]} 62.
Kg3 {[%clk 0:00:04.1]} 62... h2 {[%clk 0:01:44.9]} 63. Rxh2 {[%clk 0:00:04.1]}
63... Rxh2 {[%clk 0:01:45.8]} 64. Kxh2 {[%clk 0:00:06]} 64... c3 {[%clk
0:01:47.3]} 0-1

[Event "*** Titled Tuesday Blitz"]
[Site "Chess.com"]
[Date "2019.06.04"]
[Round "1"]
[White "attack2mateU"]
[Black "Philosopherrr"]
[Result "1-0"]
[WhiteElo "2706"]
[BlackElo "2360"]
[TimeControl "180+2"]
[EndTime "13:09:05 PDT"]
[Termination "attack2mateU won by resignation"]

1. e4 {[%clk 0:03:01.9]} 1... e5 {[%clk 0:03:00.7]} 2. Nf3 {[%clk 0:03:02.7]}
2... Nc6 {[%clk 0:03:00.3]} 3. Bb5 {[%clk 0:03:02.1]} 3... a6 {[%clk 0:02:56.2]}
4. Ba4 {[%clk 0:03:02.9]} 4... Nf6 {[%clk 0:02:56.1]} 5. O-O {[%clk 0:03:03.7]}
5... Be7 {[%clk 0:02:56]} 6. Re1 {[%clk 0:03:04.3]} 6... b5 {[%clk 0:02:57.3]}
7. Bb3 {[%clk 0:03:05.4]} 7... d6 {[%clk 0:02:59.2]} 8. c3 {[%clk 0:03:06.2]}
8... O-O {[%clk 0:03:00.3]} 9. h3 {[%clk 0:03:07.3]} 9... Bb7 {[%clk 0:03:01.1]}
10. d4 {[%clk 0:03:05.8]} 10... Re8 {[%clk 0:03:02.2]} 11. a3 {[%clk 0:02:53.7]}
11... Nd7 {[%clk 0:02:48.6]} 12. d5 {[%clk 0:02:47]} 12... Na5 {[%clk
0:02:49.1]} 13. Ba2 {[%clk 0:02:48.2]} 13... c6 {[%clk 0:02:41.5]} 14. dxc6
{[%clk 0:02:31]} 14... Bxc6 {[%clk 0:02:36.5]} 15. Nbd2 {[%clk 0:02:27.9]} 15...
Rc8 {[%clk 0:02:33.8]} 16. Nf1 {[%clk 0:02:27.4]} 16... h6 {[%clk 0:02:32.9]}
17. Ng3 {[%clk 0:02:18.3]} 17... Nf6 {[%clk 0:02:34.2]} 18. Nh4 {[%clk
0:01:57.1]} 18... Nc4 {[%clk 0:02:11.4]} 19. Nhf5 {[%clk 0:01:56.9]} 19... Bf8
{[%clk 0:02:12.5]} 20. Nh5 {[%clk 0:01:39.2]} 20... Nxh5 {[%clk 0:02:02.9]} 21.
Qxh5 {[%clk 0:01:39.4]} 21... g6 {[%clk 0:01:15.2]} 22. Qg4 {[%clk 0:01:17.9]}
22... Kh7 {[%clk 0:01:06.1]} 23. Ne3 {[%clk 0:01:14.1]} 23... Bb7 {[%clk
0:00:55.2]} 24. Nxc4 {[%clk 0:00:53.3]} 24... bxc4 {[%clk 0:00:55.4]} 25. Qe2
{[%clk 0:00:55.2]} 25... Qc7 {[%clk 0:00:54.7]} 26. f3 {[%clk 0:00:54]} 26... d5
{[%clk 0:00:53.6]} 27. exd5 {[%clk 0:00:54.3]} 27... Bxd5 {[%clk 0:00:54.9]} 28.
Bb1 {[%clk 0:00:55]} 28... Bg7 {[%clk 0:00:52.9]} 29. Be4 {[%clk 0:00:53.7]}
29... Be6 {[%clk 0:00:54.2]} 30. Be3 {[%clk 0:00:51.8]} 30... Rb8 {[%clk
0:00:53.9]} 31. Rad1 {[%clk 0:00:51.5]} 31... Red8 {[%clk 0:00:52.4]} 32. Qf2
{[%clk 0:00:48.6]} 32... f5 {[%clk 0:00:47.9]} 33. Rxd8 {[%clk 0:00:40.7]} 33...
Qxd8 {[%clk 0:00:48.7]} 34. Bb1 {[%clk 0:00:41.1]} 34... h5 {[%clk 0:00:38.4]}
35. Qe2 {[%clk 0:00:41.2]} 35... Bf7 {[%clk 0:00:34.3]} 36. Rd1 {[%clk
0:00:42.1]} 36... Qe7 {[%clk 0:00:33.3]} 37. Ba2 {[%clk 0:00:42.8]} 37... Qc7
{[%clk 0:00:32.8]} 38. Bf2 {[%clk 0:00:42]} 38... a5 {[%clk 0:00:29.3]} 39. h4
{[%clk 0:00:41.8]} 39... Bf6 {[%clk 0:00:29.2]} 40. Bg3 {[%clk 0:00:42.3]} 40...
f4 {[%clk 0:00:29.3]} 41. Bf2 {[%clk 0:00:42.9]} 41... Kg7 {[%clk 0:00:30.8]}
42. Bb1 {[%clk 0:00:43.7]} 42... Qe7 {[%clk 0:00:31.5]} 43. Re1 {[%clk
0:00:37.6]} 43... Qb7 {[%clk 0:00:30.5]} 44. Bc5 {[%clk 0:00:28.9]} 44... Qxb2
{[%clk 0:00:20.8]} 45. Qe4 {[%clk 0:00:30.3]} 45... Qxc3 {[%clk 0:00:20.6]} 46.
Rd1 {[%clk 0:00:30.5]} 46... Rb2 {[%clk 0:00:18.7]} 47. Rd7 {[%clk 0:00:29.4]}
47... Qc1+ {[%clk 0:00:16.9]} 48. Kh2 {[%clk 0:00:28.9]} 48... Qxb1 {[%clk
0:00:18.2]} 49. Qd5 {[%clk 0:00:29.1]} 49... Rxg2+ {[%clk 0:00:15.7]} 50. Kxg2
{[%clk 0:00:31]} 50... Qc2+ {[%clk 0:00:16.2]} 51. Bf2 {[%clk 0:00:32.3]} 51...
Qxf2+ {[%clk 0:00:11.4]} 52. Kxf2 {[%clk 0:00:32.8]} 52... Bxh4+ {[%clk
0:00:13.3]} 53. Kg2 {[%clk 0:00:34.3]} 1-0

[Event "*** Titled Tuesday Blitz"]
[Site "Chess.com"]
[Date "2019.06.04"]
[Round "1"]
[White "LawrenceTrent"]
[Black "LonesomeGeorge1"]
[Result "1-0"]
[WhiteElo "2699"]
[BlackElo "2357"]
[TimeControl "180+2"]
[EndTime "13:09:10 PDT"]
[Termination "LawrenceTrent won by resignation"]

1. e4 {[%clk 0:03:01.9]} 1... c6 {[%clk 0:03:00.9]} 2. Nc3 {[%clk 0:03:01.6]}
2... d5 {[%clk 0:03:02.2]} 3. Nf3 {[%clk 0:03:02.2]} 3... Nf6 {[%clk 0:03:03.5]}
4. e5 {[%clk 0:03:01.5]} 4... Ne4 {[%clk 0:03:04.6]} 5. Ne2 {[%clk 0:03:02]}
5... Qb6 {[%clk 0:03:05.8]} 6. d4 {[%clk 0:03:03.6]} 6... e6 {[%clk 0:03:06.1]}
7. Ng3 {[%clk 0:03:05]} 7... c5 {[%clk 0:03:04.6]} 8. Bd3 {[%clk 0:03:02.8]}
8... Nxg3 {[%clk 0:03:04.2]} 9. hxg3 {[%clk 0:03:01.8]} 9... Nc6 {[%clk
0:03:04.5]} 10. dxc5 {[%clk 0:03:02.6]} 10... Bxc5 {[%clk 0:02:58.1]} 11. Qe2
{[%clk 0:03:03.6]} 11... Bd7 {[%clk 0:02:46]} 12. c3 {[%clk 0:03:04]} 12... a5
{[%clk 0:02:39.3]} 13. a4 {[%clk 0:03:03]} 13... Rc8 {[%clk 0:02:38.4]} 14. g4
{[%clk 0:02:57.3]} 14... d4 {[%clk 0:02:31.8]} 15. Nd2 {[%clk 0:02:50.4]} 15...
Qc7 {[%clk 0:02:00.6]} 16. f4 {[%clk 0:02:41.4]} 16... Ne7 {[%clk 0:01:37.1]}
17. c4 {[%clk 0:02:36.1]} 17... Bb4 {[%clk 0:01:35.8]} 18. Kf2 {[%clk
0:02:31.8]} 18... Bxd2 {[%clk 0:01:35.3]} 19. Bxd2 {[%clk 0:02:29.9]} 19... b6
{[%clk 0:01:25.6]} 20. b3 {[%clk 0:02:27.1]} 20... Bc6 {[%clk 0:01:23.4]} 21.
Rh2 {[%clk 0:02:23.4]} 21... Qb7 {[%clk 0:00:50.1]} 22. Rah1 {[%clk 0:02:10.1]}
22... Rd8 {[%clk 0:00:50.5]} 23. Kg1 {[%clk 0:02:05.4]} 23... Kd7 {[%clk
0:00:50.1]} 24. Rxh7 {[%clk 0:02:04.3]} 24... Rxh7 {[%clk 0:00:50.8]} 25. Rxh7
{[%clk 0:02:02.4]} 25... Rg8 {[%clk 0:00:52.2]} 26. f5 {[%clk 0:01:57.6]} 26...
Kc8 {[%clk 0:00:50.1]} 27. Qf2 {[%clk 0:01:55.9]} 27... Be4 {[%clk 0:00:44.1]}
28. Qxd4 {[%clk 0:01:28.8]} 28... exf5 {[%clk 0:00:45.4]} 29. gxf5 {[%clk
0:01:23.4]} 29... Bxd3 {[%clk 0:00:44.9]} 30. Qxd3 {[%clk 0:01:22.9]} 30... Rd8
{[%clk 0:00:46.8]} 31. Qc2 {[%clk 0:01:21.5]} 31... Qd7 {[%clk 0:00:43.7]} 32.
Bg5 {[%clk 0:01:18.9]} 32... Qd4+ {[%clk 0:00:43]} 33. Kh1 {[%clk 0:01:17.6]}
33... Qd1+ {[%clk 0:00:41.9]} 34. Qxd1 {[%clk 0:01:12.7]} 34... Rxd1+ {[%clk
0:00:43.8]} 35. Kh2 {[%clk 0:01:14.5]} 35... Nxf5 {[%clk 0:00:45.3]} 36. g4
{[%clk 0:01:11.2]} 36... Nd4 {[%clk 0:00:45.6]} 37. Rxg7 {[%clk 0:01:06.8]}
37... Ne6 {[%clk 0:00:45.2]} 38. Rg8+ {[%clk 0:01:05.2]} 38... Kc7 {[%clk
0:00:46.7]} 39. Be7 {[%clk 0:01:06]} 39... Rd2+ {[%clk 0:00:45.9]} 40. Kg1
{[%clk 0:01:02.1]} 40... Rd3 {[%clk 0:00:45.5]} 41. Bd6+ {[%clk 0:00:59.4]}
41... Kc6 {[%clk 0:00:44.3]} 42. Rc8+ {[%clk 0:00:58.3]} 42... Kd7 {[%clk
0:00:45]} 43. Rb8 {[%clk 0:00:56.8]} 43... Rxb3 {[%clk 0:00:45.1]} 44. Rb7+
{[%clk 0:00:58]} 44... Kc6 {[%clk 0:00:43.9]} 45. Rxf7 {[%clk 0:00:55]} 45...
Rg3+ {[%clk 0:00:44.8]} 46. Kf2 {[%clk 0:00:48.9]} 46... Rxg4 {[%clk 0:00:45.9]}
47. Rf6 {[%clk 0:00:50.1]} 47... Kd7 {[%clk 0:00:42.6]} 48. Rf7+ {[%clk
0:00:46.6]} 48... Kd8 {[%clk 0:00:43.8]} 49. Re7 {[%clk 0:00:44.6]} 49... Rg6
{[%clk 0:00:21.7]} 50. Ke3 {[%clk 0:00:42.1]} 50... Kc8 {[%clk 0:00:22.4]} 51.
Ke4 {[%clk 0:00:37.6]} 51... Rh6 {[%clk 0:00:23.2]} 52. Kd5 {[%clk 0:00:34.5]}
52... Nd8 {[%clk 0:00:16.5]} 53. Rc7+ {[%clk 0:00:34.5]} 53... Kb8 {[%clk
0:00:17.9]} 54. Rh7+ {[%clk 0:00:36.4]} 1-0

[Event "*** Titled Tuesday Blitz"]
[Site "Chess.com"]
[Date "2019.06.04"]
[Round "1"]
[White "Warre"]
[Black "DmitryAnikonov"]
[Result "1/2-1/2"]
[WhiteElo "2359"]
[BlackElo "2680"]
[TimeControl "180+2"]
[EndTime "13:09:12 PDT"]
[Termination "Game drawn by repetition"]

1. d4 {[%clk 0:03:01.9]} 1... e6 {[%clk 0:03:01.9]} 2. c4 {[%clk 0:03:00.9]}
2... Nf6 {[%clk 0:03:02.6]} 3. Nf3 {[%clk 0:03:00.3]} 3... c5 {[%clk 0:03:03.7]}
4. d5 {[%clk 0:03:00]} 4... exd5 {[%clk 0:03:05.6]} 5. cxd5 {[%clk 0:03:01.3]}
5... d6 {[%clk 0:03:07.5]} 6. Nc3 {[%clk 0:03:02.3]} 6... g6 {[%clk 0:03:09.1]}
7. Bf4 {[%clk 0:03:03.6]} 7... a6 {[%clk 0:03:10.2]} 8. a4 {[%clk 0:03:04.5]}
8... Bg7 {[%clk 0:03:10.2]} 9. h3 {[%clk 0:03:04.8]} 9... Qe7 {[%clk 0:03:10.5]}
10. Nd2 {[%clk 0:03:02.4]} 10... Nh5 {[%clk 0:03:06.6]} 11. Bh2 {[%clk
0:03:02.5]} 11... Nd7 {[%clk 0:03:07.6]} 12. e3 {[%clk 0:03:01.1]} 12... O-O
{[%clk 0:03:07.1]} 13. Be2 {[%clk 0:03:01.6]} 13... Nhf6 {[%clk 0:03:02.6]} 14.
O-O {[%clk 0:02:58.3]} 14... Ne8 {[%clk 0:03:01.5]} 15. Re1 {[%clk 0:02:55.3]}
15... f5 {[%clk 0:03:02.1]} 16. Bf1 {[%clk 0:02:56.7]} 16... Ne5 {[%clk
0:03:03]} 17. f4 {[%clk 0:02:50]} 17... Nf7 {[%clk 0:03:04]} 18. e4 {[%clk
0:02:46.2]} 18... fxe4 {[%clk 0:03:02.7]} 19. Ndxe4 {[%clk 0:02:38]} 19... Qc7
{[%clk 0:03:03.8]} 20. Kh1 {[%clk 0:02:28.7]} 20... Bf5 {[%clk 0:03:04.5]} 21.
Bd3 {[%clk 0:02:25]} 21... Bxe4 {[%clk 0:02:54.5]} 22. Bxe4 {[%clk 0:02:25.2]}
22... Nf6 {[%clk 0:02:54.2]} 23. Bf3 {[%clk 0:02:24.6]} 23... Rae8 {[%clk
0:02:52.9]} 24. Qc2 {[%clk 0:02:25.4]} 24... Qd7 {[%clk 0:02:41.9]} 25. a5
{[%clk 0:02:15.7]} 25... Rxe1+ {[%clk 0:02:32]} 26. Rxe1 {[%clk 0:02:16]} 26...
Re8 {[%clk 0:02:33.5]} 27. Rxe8+ {[%clk 0:02:13.9]} 27... Qxe8 {[%clk
0:02:35.4]} 28. g4 {[%clk 0:02:13.1]} 28... Qe3 {[%clk 0:02:30.2]} 29. Qe2
{[%clk 0:02:11.7]} 29... Qc1+ {[%clk 0:02:17.2]} 30. Kg2 {[%clk 0:02:08]} 30...
Kf8 {[%clk 0:02:18.2]} 31. g5 {[%clk 0:02:02.9]} 31... Ng8 {[%clk 0:01:54.2]}
32. Bg4 {[%clk 0:02:00.9]} 32... Ne7 {[%clk 0:01:52.8]} 33. Ne4 {[%clk
0:01:26.4]} 33... Nxd5 {[%clk 0:01:50.1]} 34. Be6 {[%clk 0:00:38.7]} 34... Nxf4+
{[%clk 0:01:40.6]} 35. Bxf4 {[%clk 0:00:40.6]} 35... Qxf4 {[%clk 0:01:41.8]} 36.
Bxf7 {[%clk 0:00:39.7]} 36... Qxf7 {[%clk 0:01:38.2]} 37. Nxd6 {[%clk
0:00:39.5]} 37... Qd5+ {[%clk 0:01:39]} 38. Ne4 {[%clk 0:00:40.1]} 38... Qe5
{[%clk 0:01:29]} 39. b3 {[%clk 0:00:36.5]} 39... Ke7 {[%clk 0:01:12.6]} 40. Qc4
{[%clk 0:00:37.1]} 40... Qb2+ {[%clk 0:01:07]} 41. Kg3 {[%clk 0:00:36.2]} 41...
Be5+ {[%clk 0:01:05.1]} 42. Kf3 {[%clk 0:00:37.4]} 42... Qd4 {[%clk 0:01:00]}
43. Qxc5+ {[%clk 0:00:38.2]} 43... Ke6 {[%clk 0:00:55.7]} 44. Qc8+ {[%clk
0:00:36.1]} 44... Ke7 {[%clk 0:00:47]} 45. Qxb7+ {[%clk 0:00:37.3]} 45... Kd8
{[%clk 0:00:46.1]} 46. Qa8+ {[%clk 0:00:38.9]} 46... Kc7 {[%clk 0:00:45.7]} 47.
Qxa6 {[%clk 0:00:40.2]} 47... Qd1+ {[%clk 0:00:45.9]} 48. Qe2 {[%clk 0:00:40]}
48... Qxb3+ {[%clk 0:00:45.5]} 49. Qe3 {[%clk 0:00:38.9]} 49... Qd1+ {[%clk
0:00:46.5]} 50. Qe2 {[%clk 0:00:40.3]} 50... Qh1+ {[%clk 0:00:47]} 51. Qg2
{[%clk 0:00:41.6]} 51... Qd1+ {[%clk 0:00:47.7]} 52. Qe2 {[%clk 0:00:42.9]}
52... Qh1+ {[%clk 0:00:36.3]} 53. Qg2 {[%clk 0:00:38.4]} 53... Qb1 {[%clk
0:00:27.2]} 54. Qe2 {[%clk 0:00:36.8]} 54... Qh1+ {[%clk 0:00:20.3]} 1/2-1/2